Workbook

Sheet HeroBasicEquipConfig
A1: ID | B1: ItemID | D1: icon | F1: lv | G1: profession | H1: Type | J1: AttType | K1: AttTypeLab | L1: AttValue | M1: disItems | N1: count
A2: int | B2: int | D2: string | F2: int | G2: int | H2: int | J2: int[] | K2: int[] | L2: int[] | M2: int[] | N2: int[]
A4: ID 职业x10000+ 类型x1000+ 等级 | B4: 物品表的ID | C4: VLOOKUP 语言表中的实际值 (策划看) | D4: 图标 | E4: 升级 金币消耗 | F4: 等级 | G4: 职业 1.战士 2.法师 3.牧师 4.游侠 | H4: 装备类型 1:战靴 2:衣服 3:手套 4:头盔 5:项链 | I4: 品质 1:白色 2:绿色 3:蓝色 4:紫色 5:橙色 6:暗金 7:远古 | J4: 属性类型 1生命值 2攻击力 3防御力 4攻击速度 5暴击率 6暴击伤害 7闪避几率 8命中 9吸血 | K4: 动态文本描述 | L4: 标准属性值 (白色) | M4: 分解获得的道具 | N4: 对应数量 | O4: 备注
A5: =G5*10000+H5*1000+F5 -> 11010 | E5: 100 | F5: 10 | G5: 1 | H5: 1 | J5: 1;2;3 | L5: =_xlfn.CONCAT(R5,";",S5,";",T5,";",U5) -> 100;50;10;20 | M5: 1001 | N5: 800 | R5: 100 | S5: 50 | T5: 10 | U5: 20
A6: =G6*10000+H6*1000+F6 -> 11015 | E6: 150 | F6: 15 | G6: 1 | H6: 1 | J6: 1;2;3 | L6: =_xlfn.CONCAT(R6,";",S6,";",T6,";",U6) -> 150;60;20;21 | M6: 1001 | N6: 800 | R6: 150 | S6: 60 | T6: 20 | U6: 21
A7: 11020 | E7: 200 | F7: 20 | G7: 1 | H7: 1 | J7: 1;2;3 | L7: 200;70;30;22 | M7: 1001 | N7: 800 | R7: 200 | S7: 70 | T7: 30 | U7: 22
A8: 11025 | E8: 250 | F8: 25 | G8: 1 | H8: 1 | J8: 1;2;3 | L8: 250;80;40;23 | M8: 1001 | N8: 800 | R8: 250 | S8: 80 | T8: 40 | U8: 23
A9: 11030 | E9: 300 | F9: 30 | G9: 1 | H9: 1 | J9: 1;2;3 | L9: 300;90;50;24 | M9: 1001 | N9: 800 | R9: 300 | S9: 90 | T9: 50 | U9: 24
A10: 11035 | E10: 350 | F10: 35 | G10: 1 | H10: 1 | J10: 1;2;3 | L10: 350;100;60;25 | M10: 1001 | N10: 800 | R10: 350 | S10: 100 | T10: 60 | U10: 25
A11: 11040 | E11: 400 | F11: 40 | G11: 1 | H11: 1 | J11: 1;2;3 | L11: 400;110;70;26 | M11: 1001 | N11: 800 | R11: 400 | S11: 110 | T11: 70 | U11: 26
A12: 11045 | E12: 450 | F12: 45 | G12: 1 | H12: 1 | J12: 1;2;3 | L12: 450;120;80;27 | M12: 1001 | N12: 800 | R12: 450 | S12: 120 | T12: 80 | U12: 27
A13: 11050 | E13: 500 | F13: 50 | G13: 1 | H13: 1 | J13: 1;2;3 | L13: 500;130;90;28 | M13: 1001 | N13: 800 | R13: 500 | S13: 130 | T13: 90 | U13: 28
A14: 11055 | E14: 550 | F14: 55 | G14: 1 | H14: 1 | J14: 1;2;3 | L14: 550;140;100;29 | M14: 1001 | N14: 800 | R14: 550 | S14: 140 | T14: 100 | U14: 29
A15: 11060 | E15: 600 | F15: 60 | G15: 1 | H15: 1 | J15: 1;2;3 | L15: 600;150;110;30 | M15: 1001 | N15: 800 | R15: 600 | S15: 150 | T15: 110 | U15: 30
A16: 11065 | E16: 650 | F16: 65 | G16: 1 | H16: 1 | J16: 1;2;3 | L16: 650;160;120;31 | M16: 1001 | N16: 800 | R16: 650 | S16: 160 | T16: 120 | U16: 31
A17: 11070 | E17: 700 | F17: 70 | G17: 1 | H17: 1 | J17: 1;2;3 | L17: 700;170;130;32 | M17: 1001 | N17: 800 | R17: 700 | S17: 170 | T17: 130 | U17: 32
A18: 11075 | E18: 750 | F18: 75 | G18: 1 | H18: 1 | J18: 1;2;3 | L18: 750;180;140;33 | M18: 1001 | N18: 800 | R18: 750 | S18: 180 | T18: 140 | U18: 33
A19: 11080 | E19: 800 | F19: 80 | G19: 1 | H19: 1 | J19: 1;2;3 | L19: 800;190;150;34 | M19: 1001 | N19: 800 | R19: 800 | S19: 190 | T19: 150 | U19: 34
A20: 11085 | E20: 850 | F20: 85 | G20: 1 | H20: 1 | J20: 1;2;3 | L20: 850;200;160;35 | M20: 1001 | N20: 800 | R20: 850 | S20: 200 | T20: 160 | U20: 35
A21: 11090 | E21: 900 | F21: 90 | G21: 1 | H21: 1 | J21: 1;2;3 | L21: 900;210;170;36 | M21: 1001 | N21: 800 | R21: 900 | S21: 210 | T21: 170 | U21: 36
A22: 11095 | E22: 950 | F22: 95 | G22: 1 | H22: 1 | J22: 1;2;3 | L22: 950;220;180;37 | M22: 1001 | N22: 800 | R22: 950 | S22: 220 | T22: 180 | U22: 37
A23: 11100 | E23: 1000 | F23: 100 | G23: 1 | H23: 1 | J23: 1;2;3 | L23: 1000;230;190;38 | M23: 1001 | N23: 800 | R23: 1000 | S23: 230 | T23: 190 | U23: 38
A24: 11105 | E24: 1050 | F24: 105 | G24: 1 | H24: 1 | J24: 1;2;3 | L24: 1050;240;200;39 | M24: 1001 | N24: 800 | R24: 1050 | S24: 240 | T24: 200 | U24: 39
A25: 11110 | E25: 1100 | F25: 110 | G25: 1 | H25: 1 | J25: 1;2;3 | L25: 1100;250;210;40 | M25: 1001 | N25: 800 | R25: 1100 | S25: 250 | T25: 210 | U25: 40
A26: 11115 | E26: 1150 | F26: 115 | G26: 1 | H26: 1 | J26: 1;2;3 | L26: 1150;260;220;41 | M26: 1001 | N26: 800 | R26: 1150 | S26: 260 | T26: 220 | U26: 41
A27: 11120 | E27: 1200 | F27: 120 | G27: 1 | H27: 1 | J27: 1;2;3 | L27: 1200;270;230;42 | M27: 1001 | N27: 800 | R27: 1200 | S27: 270 | T27: 230 | U27: 42
A28: 11125 | E28: 1250 | F28: 125 | G28: 1 | H28: 1 | J28: 1;2;3 | L28: 1250;280;240;43 | M28: 1001 | N28: 800 | R28: 1250 | S28: 280 | T28: 240 | U28: 43
A29: 11130 | E29: 1300 | F29: 130 | G29: 1 | H29: 1 | J29: 1;2;3 | L29: 1300;290;250;44 | M29: 1001 | N29: 800 | R29: 1300 | S29: 290 | T29: 250 | U29: 44
A30: 11135 | E30: 1350 | F30: 135 | G30: 1 | H30: 1 | J30: 1;2;3 | L30: 1350;300;260;45 | M30: 1001 | N30: 800 | R30: 1350 | S30: 300 | T30: 260 | U30: 45
A31: 11140 | E31: 1400 | F31: 140 | G31: 1 | H31: 1 | J31: 1;2;3 | L31: 1400;310;270;46 | M31: 1001 | N31: 800 | R31: 1400 | S31: 310 | T31: 270 | U31: 46
A32: 11145 | E32: 1450 | F32: 145 | G32: 1 | H32: 1 | J32: 1;2;3 | L32: 1450;320;280;47 | M32: 1001 | N32: 800 | R32: 1450 | S32: 320 | T32: 280 | U32: 47
A33: 11150 | E33: 1500 | F33: 150 | G33: 1 | H33: 1 | J33: 1;2;3 | L33: 1500;330;290;48 | M33: 1001 | N33: 800 | R33: 1500 | S33: 330 | T33: 290 | U33: 48
A34: 11155 | E34: 1550 | F34: 155 | G34: 1 | H34: 1 | J34: 1;2;3 | L34: 1550;340;300;49 | M34: 1001 | N34: 800 | R34: 1550 | S34: 340 | T34: 300 | U34: 49
A35: 11160 | E35: 1600 | F35: 160 | G35: 1 | H35: 1 | J35: 1;2;3 | L35: 1600;350;310;50 | M35: 1001 | N35: 800 | R35: 1600 | S35: 350 | T35: 310 | U35: 50
A36: 11165 | E36: 1650 | F36: 165 | G36: 1 | H36: 1 | J36: 1;2;3 | L36: 1650;360;320;51 | M36: 1001 | N36: 800 | R36: 1650 | S36: 360 | T36: 320 | U36: 51
A37: 11170 | E37: 1700 | F37: 170 | G37: 1 | H37: 1 | J37: 1;2;3 | L37: 1700;370;330;52 | M37: 1001 | N37: 800 | R37: 1700 | S37: 370 | T37: 330 | U37: 52
A38: 11175 | E38: 1750 | F38: 175 | G38: 1 | H38: 1 | J38: 1;2;3 | L38: =_xlfn.CONCAT(R38,";",S38,";",T38,";",U38) -> 1750;380;340;53 | M38: 1001 | N38: 800 | R38: 1750 | S38: 380 | T38: 340 | U38: 53
A39: 11180 | E39: 1800 | F39: 180 | G39: 1 | H39: 1 | J39: 1;2;3 | L39: 1800;390;350;54 | M39: 1001 | N39: 800 | R39: 1800 | S39: 390 | T39: 350 | U39: 54
A40: 11185 | E40: 1850 | F40: 185 | G40: 1 | H40: 1 | J40: 1;2;3 | L40: 1850;400;360;55 | M40: 1001 | N40: 800 | R40: 1850 | S40: 400 | T40: 360 | U40: 55
A41: 11190 | E41: 1900 | F41: 190 | G41: 1 | H41: 1 | J41: 1;2;3 | L41: 1900;410;370;56 | M41: 1001 | N41: 800 | R41: 1900 | S41: 410 | T41: 370 | U41: 56
A42: 11195 | E42: 1950 | F42: 195 | G42: 1 | H42: 1 | J42: 1;2;3 | L42: 1950;420;380;57 | M42: 1001 | N42: 800 | R42: 1950 | S42: 420 | T42: 380 | U42: 57
A43: 11200 | E43: 2000 | F43: 200 | G43: 1 | H43: 1 | J43: 1;2;3 | L43: 2000;430;390;58 | M43: 1001 | N43: 800 | R43: 2000 | S43: 430 | T43: 390 | U43: 58
A44: 11205 | E44: 2050 | F44: 205 | G44: 1 | H44: 1 | J44: 1;2;3 | L44: 2050;440;400;59 | M44: 1001 | N44: 800 | R44: 2050 | S44: 440 | T44: 400 | U44: 59
A45: 11210 | E45: 2100 | F45: 210 | G45: 1 | H45: 1 | J45: 1;2;3 | L45: 2100;450;410;60 | M45: 1001 | N45: 800 | R45: 2100 | S45: 450 | T45: 410 | U45: 60
A46: 11215 | E46: 2150 | F46: 215 | G46: 1 | H46: 1 | J46: 1;2;3 | L46: 2150;460;420;61 | M46: 1001 | N46: 800 | R46: 2150 | S46: 460 | T46: 420 | U46: 61
A47: 11220 | E47: 2200 | F47: 220 | G47: 1 | H47: 1 | J47: 1;2;3 | L47: 2200;470;430;62 | M47: 1001 | N47: 800 | R47: 2200 | S47: 470 | T47: 430 | U47: 62
A48: 11225 | E48: 2250 | F48: 225 | G48: 1 | H48: 1 | J48: 1;2;3 | L48: 2250;480;440;63 | M48: 1001 | N48: 800 | R48: 2250 | S48: 480 | T48: 440 | U48: 63
A49: 11230 | E49: 2300 | F49: 230 | G49: 1 | H49: 1 | J49: 1;2;3 | L49: 2300;490;450;64 | M49: 1001 | N49: 800 | R49: 2300 | S49: 490 | T49: 450 | U49: 64
A50: 11235 | E50: 2350 | F50: 235 | G50: 1 | H50: 1 | J50: 1;2;3 | L50: 2350;500;460;65 | M50: 1001 | N50: 800 | R50: 2350 | S50: 500 | T50: 460 | U50: 65
A51: 11240 | E51: 2400 | F51: 240 | G51: 1 | H51: 1 | J51: 1;2;3 | L51: 2400;510;470;66 | M51: 1001 | N51: 800 | R51: 2400 | S51: 510 | T51: 470 | U51: 66
A52: 11245 | E52: 2450 | F52: 245 | G52: 1 | H52: 1 | J52: 1;2;3 | L52: 2450;520;480;67 | M52: 1001 | N52: 800 | R52: 2450 | S52: 520 | T52: 480 | U52: 67
A53: 11250 | E53: 2500 | F53: 250 | G53: 1 | H53: 1 | J53: 1;2;3 | L53: 2500;530;490;68 | M53: 1001 | N53: 800 | R53: 2500 | S53: 530 | T53: 490 | U53: 68
A54: 11255 | E54: 2550 | F54: 255 | G54: 1 | H54: 1 | J54: 1;2;3 | L54: 2550;540;500;69 | M54: 1001 | N54: 800 | R54: 2550 | S54: 540 | T54: 500 | U54: 69
A55: 11260 | E55: 2600 | F55: 260 | G55: 1 | H55: 1 | J55: 1;2;3 | L55: 2600;550;510;70 | M55: 1001 | N55: 800 | R55: 2600 | S55: 550 | T55: 510 | U55: 70
A56: 11265 | E56: 2650 | F56: 265 | G56: 1 | H56: 1 | J56: 1;2;3 | L56: 2650;560;520;71 | M56: 1001 | N56: 800 | R56: 2650 | S56: 560 | T56: 520 | U56: 71
A57: 11270 | E57: 2700 | F57: 270 | G57: 1 | H57: 1 | J57: 1;2;3 | L57: 2700;570;530;72 | M57: 1001 | N57: 800 | R57: 2700 | S57: 570 | T57: 530 | U57: 72
A58: 11275 | E58: 2750 | F58: 275 | G58: 1 | H58: 1 | J58: 1;2;3 | L58: 2750;580;540;73 | M58: 1001 | N58: 800 | R58: 2750 | S58: 580 | T58: 540 | U58: 73
A59: 11280 | E59: 2800 | F59: 280 | G59: 1 | H59: 1 | J59: 1;2;3 | L59: 2800;590;550;74 | M59: 1001 | N59: 800 | R59: 2800 | S59: 590 | T59: 550 | U59: 74
A60: 11285 | E60: 2850 | F60: 285 | G60: 1 | H60: 1 | J60: 1;2;3 | L60: 2850;600;560;75 | M60: 1001 | N60: 800 | R60: 2850 | S60: 600 | T60: 560 | U60: 75
A61: 11290 | E61: 2900 | F61: 290 | G61: 1 | H61: 1 | J61: 1;2;3 | L61: 2900;610;570;76 | M61: 1001 | N61: 800 | R61: 2900 | S61: 610 | T61: 570 | U61: 76
A62: 11295 | E62: 2950 | F62: 295 | G62: 1 | H62: 1 | J62: 1;2;3 | L62: 2950;620;580;77 | M62: 1001 | N62: 800 | R62: 2950 | S62: 620 | T62: 580 | U62: 77
A63: 11300 | E63: 3000 | F63: 300 | G63: 1 | H63: 1 | J63: 1;2;3 | L63: 3000;630;590;78 | M63: 1001 | N63: 800 | R63: 3000 | S63: 630 | T63: 590 | U63: 78
A64: 12010 | E64: 100 | F64: 10 | G64: 1 | H64: 2 | J64: 1;2;3 | L64: 100;50;10;20 | M64: 1001 | N64: 800 | R64: 100 | S64: 50 | T64: 10 | U64: 20
A65: 12015 | E65: 150 | F65: 15 | G65: 1 | H65: 2 | J65: 1;2;3 | L65: 150;60;20;21 | M65: 1001 | N65: 800 | R65: 150 | S65: 60 | T65: 20 | U65: 21
A66: 12020 | E66: 200 | F66: 20 | G66: 1 | H66: 2 | J66: 1;2;3 | L66: 200;70;30;22 | M66: 1001 | N66: 800 | R66: 200 | S66: 70 | T66: 30 | U66: 22
A67: 12025 | E67: 250 | F67: 25 | G67: 1 | H67: 2 | J67: 1;2;3 | L67: 250;80;40;23 | M67: 1001 | N67: 800 | R67: 250 | S67: 80 | T67: 40 | U67: 23
A68: 12030 | E68: 300 | F68: 30 | G68: 1 | H68: 2 | J68: 1;2;3 | L68: 300;90;50;24 | M68: 1001 | N68: 800 | R68: 300 | S68: 90 | T68: 50 | U68: 24
A69: 12035 | E69: 350 | F69: 35 | G69: 1 | H69: 2 | J69: 1;2;3 | L69: 350;100;60;25 | M69: 1001 | N69: 800 | R69: 350 | S69: 100 | T69: 60 | U69: 25
A70: =G70*10000+H70*1000+F70 -> 12040 | E70: 400 | F70: 40 | G70: 1 | H70: 2 | J70: 1;2;3 | L70: 400;110;70;26 | M70: 1001 | N70: 800 | R70: 400 | S70: 110 | T70: 70 | U70: 26
A71: 12045 | E71: 450 | F71: 45 | G71: 1 | H71: 2 | J71: 1;2;3 | L71: 450;120;80;27 | M71: 1001 | N71: 800 | R71: 450 | S71: 120 | T71: 80 | U71: 27
A72: 12050 | E72: 500 | F72: 50 | G72: 1 | H72: 2 | J72: 1;2;3 | L72: 500;130;90;28 | M72: 1001 | N72: 800 | R72: 500 | S72: 130 | T72: 90 | U72: 28
A73: 12055 | E73: 550 | F73: 55 | G73: 1 | H73: 2 | J73: 1;2;3 | L73: 550;140;100;29 | M73: 1001 | N73: 800 | R73: 550 | S73: 140 | T73: 100 | U73: 29
A74: 12060 | E74: 600 | F74: 60 | G74: 1 | H74: 2 | J74: 1;2;3 | L74: 600;150;110;30 | M74: 1001 | N74: 800 | R74: 600 | S74: 150 | T74: 110 | U74: 30
A75: 12065 | E75: 650 | F75: 65 | G75: 1 | H75: 2 | J75: 1;2;3 | L75: =_xlfn.CONCAT(R75,";",S75,";",T75,";",U75) -> 650;160;120;31 | M75: 1001 | N75: 800 | R75: 650 | S75: 160 | T75: 120 | U75: 31
A76: 12070 | E76: 700 | F76: 70 | G76: 1 | H76: 2 | J76: 1;2;3 | L76: 700;170;130;32 | M76: 1001 | N76: 800 | R76: 700 | S76: 170 | T76: 130 | U76: 32
A77: 12075 | E77: 750 | F77: 75 | G77: 1 | H77: 2 | J77: 1;2;3 | L77: 750;180;140;33 | M77: 1001 | N77: 800 | R77: 750 | S77: 180 | T77: 140 | U77: 33
A78: 12080 | E78: 800 | F78: 80 | G78: 1 | H78: 2 | J78: 1;2;3 | L78: 800;190;150;34 | M78: 1001 | N78: 800 | R78: 800 | S78: 190 | T78: 150 | U78: 34
A79: 12085 | E79: 850 | F79: 85 | G79: 1 | H79: 2 | J79: 1;2;3 | L79: 850;200;160;35 | M79: 1001 | N79: 800 | R79: 850 | S79: 200 | T79: 160 | U79: 35
A80: 12090 | E80: 900 | F80: 90 | G80: 1 | H80: 2 | J80: 1;2;3 | L80: 900;210;170;36 | M80: 1001 | N80: 800 | R80: 900 | S80: 210 | T80: 170 | U80: 36
A81: 12095 | E81: 950 | F81: 95 | G81: 1 | H81: 2 | J81: 1;2;3 | L81: 950;220;180;37 | M81: 1001 | N81: 800 | R81: 950 | S81: 220 | T81: 180 | U81: 37
A82: 12100 | E82: 1000 | F82: 100 | G82: 1 | H82: 2 | J82: 1;2;3 | L82: 1000;230;190;38 | M82: 1001 | N82: 800 | R82: 1000 | S82: 230 | T82: 190 | U82: 38
A83: 12105 | E83: 1050 | F83: 105 | G83: 1 | H83: 2 | J83: 1;2;3 | L83: 1050;240;200;39 | M83: 1001 | N83: 800 | R83: 1050 | S83: 240 | T83: 200 | U83: 39
A84: 12110 | E84: 1100 | F84: 110 | G84: 1 | H84: 2 | J84: 1;2;3 | L84: 1100;250;210;40 | M84: 1001 | N84: 800 | R84: 1100 | S84: 250 | T84: 210 | U84: 40
A85: 12115 | E85: 1150 | F85: 115 | G85: 1 | H85: 2 | J85: 1;2;3 | L85: 1150;260;220;41 | M85: 1001 | N85: 800 | R85: 1150 | S85: 260 | T85: 220 | U85: 41
A86: 12120 | E86: 1200 | F86: 120 | G86: 1 | H86: 2 | J86: 1;2;3 | L86: 1200;270;230;42 | M86: 1001 | N86: 800 | R86: 1200 | S86: 270 | T86: 230 | U86: 42
A87: 12125 | E87: 1250 | F87: 125 | G87: 1 | H87: 2 | J87: 1;2;3 | L87: 1250;280;240;43 | M87: 1001 | N87: 800 | R87: 1250 | S87: 280 | T87: 240 | U87: 43
A88: 12130 | E88: 1300 | F88: 130 | G88: 1 | H88: 2 | J88: 1;2;3 | L88: 1300;290;250;44 | M88: 1001 | N88: 800 | R88: 1300 | S88: 290 | T88: 250 | U88: 44
A89: 12135 | E89: 1350 | F89: 135 | G89: 1 | H89: 2 | J89: 1;2;3 | L89: 1350;300;260;45 | M89: 1001 | N89: 800 | R89: 1350 | S89: 300 | T89: 260 | U89: 45
A90: 12140 | E90: 1400 | F90: 140 | G90: 1 | H90: 2 | J90: 1;2;3 | L90: 1400;310;270;46 | M90: 1001 | N90: 800 | R90: 1400 | S90: 310 | T90: 270 | U90: 46
A91: 12145 | E91: 1450 | F91: 145 | G91: 1 | H91: 2 | J91: 1;2;3 | L91: 1450;320;280;47 | M91: 1001 | N91: 800 | R91: 1450 | S91: 320 | T91: 280 | U91: 47
A92: 12150 | E92: 1500 | F92: 150 | G92: 1 | H92: 2 | J92: 1;2;3 | L92: 1500;330;290;48 | M92: 1001 | N92: 800 | R92: 1500 | S92: 330 | T92: 290 | U92: 48
A93: 12155 | E93: 1550 | F93: 155 | G93: 1 | H93: 2 | J93: 1;2;3 | L93: 1550;340;300;49 | M93: 1001 | N93: 800 | R93: 1550 | S93: 340 | T93: 300 | U93: 49
A94: 12160 | E94: 1600 | F94: 160 | G94: 1 | H94: 2 | J94: 1;2;3 | L94: 1600;350;310;50 | M94: 1001 | N94: 800 | R94: 1600 | S94: 350 | T94: 310 | U94: 50
A95: 12165 | E95: 1650 | F95: 165 | G95: 1 | H95: 2 | J95: 1;2;3 | L95: 1650;360;320;51 | M95: 1001 | N95: 800 | R95: 1650 | S95: 360 | T95: 320 | U95: 51
A96: 12170 | E96: 1700 | F96: 170 | G96: 1 | H96: 2 | J96: 1;2;3 | L96: 1700;370;330;52 | M96: 1001 | N96: 800 | R96: 1700 | S96: 370 | T96: 330 | U96: 52
A97: 12175 | E97: 1750 | F97: 175 | G97: 1 | H97: 2 | J97: 1;2;3 | L97: 1750;380;340;53 | M97: 1001 | N97: 800 | R97: 1750 | S97: 380 | T97: 340 | U97: 53
A98: 12180 | E98: 1800 | F98: 180 | G98: 1 | H98: 2 | J98: 1;2;3 | L98: 1800;390;350;54 | M98: 1001 | N98: 800 | R98: 1800 | S98: 390 | T98: 350 | U98: 54
A99: 12185 | E99: 1850 | F99: 185 | G99: 1 | H99: 2 | J99: 1;2;3 | L99: 1850;400;360;55 | M99: 1001 | N99: 800 | R99: 1850 | S99: 400 | T99: 360 | U99: 55
A100: 12190 | E100: 1900 | F100: 190 | G100: 1 | H100: 2 | J100: 1;2;3 | L100: 1900;410;370;56 | M100: 1001 | N100: 800 | R100: 1900 | S100: 410 | T100: 370 | U100: 56
A101: 12195 | E101: 1950 | F101: 195 | G101: 1 | H101: 2 | J101: 1;2;3 | L101: 1950;420;380;57 | M101: 1001 | N101: 800 | R101: 1950 | S101: 420 | T101: 380 | U101: 57
A102: 12200 | E102: 2000 | F102: 200 | G102: 1 | H102: 2 | J102: 1;2;3 | L102: 2000;430;390;58 | M102: 1001 | N102: 800 | R102: 2000 | S102: 430 | T102: 390 | U102: 58
A103: 12205 | E103: 2050 | F103: 205 | G103: 1 | H103: 2 | J103: 1;2;3 | L103: 2050;440;400;59 | M103: 1001 | N103: 800 | R103: 2050 | S103: 440 | T103: 400 | U103: 59
A104: 12210 | E104: 2100 | F104: 210 | G104: 1 | H104: 2 | J104: 1;2;3 | L104: 2100;450;410;60 | M104: 1001 | N104: 800 | R104: 2100 | S104: 450 | T104: 410 | U104: 60
A105: 12215 | E105: 2150 | F105: 215 | G105: 1 | H105: 2 | J105: 1;2;3 | L105: 2150;460;420;61 | M105: 1001 | N105: 800 | R105: 2150 | S105: 460 | T105: 420 | U105: 61
A106: 12220 | E106: 2200 | F106: 220 | G106: 1 | H106: 2 | J106: 1;2;3 | L106: 2200;470;430;62 | M106: 1001 | N106: 800 | R106: 2200 | S106: 470 | T106: 430 | U106: 62
A107: 12225 | E107: 2250 | F107: 225 | G107: 1 | H107: 2 | J107: 1;2;3 | L107: 2250;480;440;63 | M107: 1001 | N107: 800 | R107: 2250 | S107: 480 | T107: 440 | U107: 63
A108: 12230 | E108: 2300 | F108: 230 | G108: 1 | H108: 2 | J108: 1;2;3 | L108: 2300;490;450;64 | M108: 1001 | N108: 800 | R108: 2300 | S108: 490 | T108: 450 | U108: 64
A109: 12235 | E109: 2350 | F109: 235 | G109: 1 | H109: 2 | J109: 1;2;3 | L109: 2350;500;460;65 | M109: 1001 | N109: 800 | R109: 2350 | S109: 500 | T109: 460 | U109: 65
A110: 12240 | E110: 2400 | F110: 240 | G110: 1 | H110: 2 | J110: 1;2;3 | L110: 2400;510;470;66 | M110: 1001 | N110: 800 | R110: 2400 | S110: 510 | T110: 470 | U110: 66
A111: 12245 | E111: 2450 | F111: 245 | G111: 1 | H111: 2 | J111: 1;2;3 | L111: 2450;520;480;67 | M111: 1001 | N111: 800 | R111: 2450 | S111: 520 | T111: 480 | U111: 67
A112: 12250 | E112: 2500 | F112: 250 | G112: 1 | H112: 2 | J112: 1;2;3 | L112: 2500;530;490;68 | M112: 1001 | N112: 800 | R112: 2500 | S112: 530 | T112: 490 | U112: 68
A113: 12255 | E113: 2550 | F113: 255 | G113: 1 | H113: 2 | J113: 1;2;3 | L113: 2550;540;500;69 | M113: 1001 | N113: 800 | R113: 2550 | S113: 540 | T113: 500 | U113: 69
A114: 12260 | E114: 2600 | F114: 260 | G114: 1 | H114: 2 | J114: 1;2;3 | L114: 2600;550;510;70 | M114: 1001 | N114: 800 | R114: 2600 | S114: 550 | T114: 510 | U114: 70
A115: 12265 | E115: 2650 | F115: 265 | G115: 1 | H115: 2 | J115: 1;2;3 | L115: 2650;560;520;71 | M115: 1001 | N115: 800 | R115: 2650 | S115: 560 | T115: 520 | U115: 71
A116: 12270 | E116: 2700 | F116: 270 | G116: 1 | H116: 2 | J116: 1;2;3 | L116: 2700;570;530;72 | M116: 1001 | N116: 800 | R116: 2700 | S116: 570 | T116: 530 | U116: 72
A117: 12275 | E117: 2750 | F117: 275 | G117: 1 | H117: 2 | J117: 1;2;3 | L117: 2750;580;540;73 | M117: 1001 | N117: 800 | R117: 2750 | S117: 580 | T117: 540 | U117: 73
A118: 12280 | E118: 2800 | F118: 280 | G118: 1 | H118: 2 | J118: 1;2;3 | L118: 2800;590;550;74 | M118: 1001 | N118: 800 | R118: 2800 | S118: 590 | T118: 550 | U118: 74
A119: 12285 | E119: 2850 | F119: 285 | G119: 1 | H119: 2 | J119: 1;2;3 | L119: 2850;600;560;75 | M119: 1001 | N119: 800 | R119: 2850 | S119: 600 | T119: 560 | U119: 75
A120: 12290 | E120: 2900 | F120: 290 | G120: 1 | H120: 2 | J120: 1;2;3 | L120: 2900;610;570;76 | M120: 1001 | N120: 800 | R120: 2900 | S120: 610 | T120: 570 | U120: 76
A121: 12295 | E121: 2950 | F121: 295 | G121: 1 | H121: 2 | J121: 1;2;3 | L121: 2950;620;580;77 | M121: 1001 | N121: 800 | R121: 2950 | S121: 620 | T121: 580 | U121: 77
A122: 12300 | E122: 3000 | F122: 300 | G122: 1 | H122: 2 | J122: 1;2;3 | L122: 3000;630;590;78 | M122: 1001 | N122: 800 | R122: 3000 | S122: 630 | T122: 590 | U122: 78
A123: 13010 | E123: 100 | F123: 10 | G123: 1 | H123: 3 | J123: 1;2;3 | L123: 100;50;10;20 | M123: 1001 | N123: 800 | R123: 100 | S123: 50 | T123: 10 | U123: 20
A124: 13015 | E124: 150 | F124: 15 | G124: 1 | H124: 3 | J124: 1;2;3 | L124: 150;60;20;21 | M124: 1001 | N124: 800 | R124: 150 | S124: 60 | T124: 20 | U124: 21
A125: 13020 | E125: 200 | F125: 20 | G125: 1 | H125: 3 | J125: 1;2;3 | L125: 200;70;30;22 | M125: 1001 | N125: 800 | R125: 200 | S125: 70 | T125: 30 | U125: 22
A126: 13025 | E126: 250 | F126: 25 | G126: 1 | H126: 3 | J126: 1;2;3 | L126: 250;80;40;23 | M126: 1001 | N126: 800 | R126: 250 | S126: 80 | T126: 40 | U126: 23
A127: 13030 | E127: 300 | F127: 30 | G127: 1 | H127: 3 | J127: 1;2;3 | L127: 300;90;50;24 | M127: 1001 | N127: 800 | R127: 300 | S127: 90 | T127: 50 | U127: 24
A128: 13035 | E128: 350 | F128: 35 | G128: 1 | H128: 3 | J128: 1;2;3 | L128: 350;100;60;25 | M128: 1001 | N128: 800 | R128: 350 | S128: 100 | T128: 60 | U128: 25
A129: 13040 | E129: 400 | F129: 40 | G129: 1 | H129: 3 | J129: 1;2;3 | L129: 400;110;70;26 | M129: 1001 | N129: 800 | R129: 400 | S129: 110 | T129: 70 | U129: 26
A130: 13045 | E130: 450 | F130: 45 | G130: 1 | H130: 3 | J130: 1;2;3 | L130: 450;120;80;27 | M130: 1001 | N130: 800 | R130: 450 | S130: 120 | T130: 80 | U130: 27
A131: 13050 | E131: 500 | F131: 50 | G131: 1 | H131: 3 | J131: 1;2;3 | L131: 500;130;90;28 | M131: 1001 | N131: 800 | R131: 500 | S131: 130 | T131: 90 | U131: 28
A132: 13055 | E132: 550 | F132: 55 | G132: 1 | H132: 3 | J132: 1;2;3 | L132: 550;140;100;29 | M132: 1001 | N132: 800 | R132: 550 | S132: 140 | T132: 100 | U132: 29
A133: 13060 | E133: 600 | F133: 60 | G133: 1 | H133: 3 | J133: 1;2;3 | L133: 600;150;110;30 | M133: 1001 | N133: 800 | R133: 600 | S133: 150 | T133: 110 | U133: 30
A134: =G134*10000+H134*1000+F134 -> 13065 | E134: 650 | F134: 65 | G134: 1 | H134: 3 | J134: 1;2;3 | L134: 650;160;120;31 | M134: 1001 | N134: 800 | R134: 650 | S134: 160 | T134: 120 | U134: 31
A135: 13070 | E135: 700 | F135: 70 | G135: 1 | H135: 3 | J135: 1;2;3 | L135: 700;170;130;32 | M135: 1001 | N135: 800 | R135: 700 | S135: 170 | T135: 130 | U135: 32
A136: 13075 | E136: 750 | F136: 75 | G136: 1 | H136: 3 | J136: 1;2;3 | L136: 750;180;140;33 | M136: 1001 | N136: 800 | R136: 750 | S136: 180 | T136: 140 | U136: 33
A137: 13080 | E137: 800 | F137: 80 | G137: 1 | H137: 3 | J137: 1;2;3 | L137: 800;190;150;34 | M137: 1001 | N137: 800 | R137: 800 | S137: 190 | T137: 150 | U137: 34
A138: 13085 | E138: 850 | F138: 85 | G138: 1 | H138: 3 | J138: 1;2;3 | L138: 850;200;160;35 | M138: 1001 | N138: 800 | R138: 850 | S138: 200 | T138: 160 | U138: 35
A139: 13090 | E139: 900 | F139: 90 | G139: 1 | H139: 3 | J139: 1;2;3 | L139: =_xlfn.CONCAT(R139,";",S139,";",T139,";",U139) -> 900;210;170;36 | M139: 1001 | N139: 800 | R139: 900 | S139: 210 | T139: 170 | U139: 36
A140: 13095 | E140: 950 | F140: 95 | G140: 1 | H140: 3 | J140: 1;2;3 | L140: 950;220;180;37 | M140: 1001 | N140: 800 | R140: 950 | S140: 220 | T140: 180 | U140: 37
A141: 13100 | E141: 1000 | F141: 100 | G141: 1 | H141: 3 | J141: 1;2;3 | L141: 1000;230;190;38 | M141: 1001 | N141: 800 | R141: 1000 | S141: 230 | T141: 190 | U141: 38
A142: 13105 | E142: 1050 | F142: 105 | G142: 1 | H142: 3 | J142: 1;2;3 | L142: 1050;240;200;39 | M142: 1001 | N142: 800 | R142: 1050 | S142: 240 | T142: 200 | U142: 39
A143: 13110 | E143: 1100 | F143: 110 | G143: 1 | H143: 3 | J143: 1;2;3 | L143: 1100;250;210;40 | M143: 1001 | N143: 800 | R143: 1100 | S143: 250 | T143: 210 | U143: 40
A144: 13115 | E144: 1150 | F144: 115 | G144: 1 | H144: 3 | J144: 1;2;3 | L144: 1150;260;220;41 | M144: 1001 | N144: 800 | R144: 1150 | S144: 260 | T144: 220 | U144: 41
A145: 13120 | E145: 1200 | F145: 120 | G145: 1 | H145: 3 | J145: 1;2;3 | L145: 1200;270;230;42 | M145: 1001 | N145: 800 | R145: 1200 | S145: 270 | T145: 230 | U145: 42
A146: 13125 | E146: 1250 | F146: 125 | G146: 1 | H146: 3 | J146: 1;2;3 | L146: 1250;280;240;43 | M146: 1001 | N146: 800 | R146: 1250 | S146: 280 | T146: 240 | U146: 43
A147: 13130 | E147: 1300 | F147: 130 | G147: 1 | H147: 3 | J147: 1;2;3 | L147: 1300;290;250;44 | M147: 1001 | N147: 800 | R147: 1300 | S147: 290 | T147: 250 | U147: 44
A148: 13135 | E148: 1350 | F148: 135 | G148: 1 | H148: 3 | J148: 1;2;3 | L148: 1350;300;260;45 | M148: 1001 | N148: 800 | R148: 1350 | S148: 300 | T148: 260 | U148: 45
A149: 13140 | E149: 1400 | F149: 140 | G149: 1 | H149: 3 | J149: 1;2;3 | L149: 1400;310;270;46 | M149: 1001 | N149: 800 | R149: 1400 | S149: 310 | T149: 270 | U149: 46
A150: 13145 | E150: 1450 | F150: 145 | G150: 1 | H150: 3 | J150: 1;2;3 | L150: 1450;320;280;47 | M150: 1001 | N150: 800 | R150: 1450 | S150: 320 | T150: 280 | U150: 47
A151: 13150 | E151: 1500 | F151: 150 | G151: 1 | H151: 3 | J151: 1;2;3 | L151: 1500;330;290;48 | M151: 1001 | N151: 800 | R151: 1500 | S151: 330 | T151: 290 | U151: 48
A152: 13155 | E152: 1550 | F152: 155 | G152: 1 | H152: 3 | J152: 1;2;3 | L152: 1550;340;300;49 | M152: 1001 | N152: 800 | R152: 1550 | S152: 340 | T152: 300 | U152: 49
A153: 13160 | E153: 1600 | F153: 160 | G153: 1 | H153: 3 | J153: 1;2;3 | L153: 1600;350;310;50 | M153: 1001 | N153: 800 | R153: 1600 | S153: 350 | T153: 310 | U153: 50
A154: 13165 | E154: 1650 | F154: 165 | G154: 1 | H154: 3 | J154: 1;2;3 | L154: 1650;360;320;51 | M154: 1001 | N154: 800 | R154: 1650 | S154: 360 | T154: 320 | U154: 51
A155: 13170 | E155: 1700 | F155: 170 | G155: 1 | H155: 3 | J155: 1;2;3 | L155: 1700;370;330;52 | M155: 1001 | N155: 800 | R155: 1700 | S155: 370 | T155: 330 | U155: 52
A156: 13175 | E156: 1750 | F156: 175 | G156: 1 | H156: 3 | J156: 1;2;3 | L156: 1750;380;340;53 | M156: 1001 | N156: 800 | R156: 1750 | S156: 380 | T156: 340 | U156: 53
A157: 13180 | E157: 1800 | F157: 180 | G157: 1 | H157: 3 | J157: 1;2;3 | L157: 1800;390;350;54 | M157: 1001 | N157: 800 | R157: 1800 | S157: 390 | T157: 350 | U157: 54
A158: 13185 | E158: 1850 | F158: 185 | G158: 1 | H158: 3 | J158: 1;2;3 | L158: 1850;400;360;55 | M158: 1001 | N158: 800 | R158: 1850 | S158: 400 | T158: 360 | U158: 55
A159: 13190 | E159: 1900 | F159: 190 | G159: 1 | H159: 3 | J159: 1;2;3 | L159: 1900;410;370;56 | M159: 1001 | N159: 800 | R159: 1900 | S159: 410 | T159: 370 | U159: 56
A160: 13195 | E160: 1950 | F160: 195 | G160: 1 | H160: 3 | J160: 1;2;3 | L160: 1950;420;380;57 | M160: 1001 | N160: 800 | R160: 1950 | S160: 420 | T160: 380 | U160: 57
A161: 13200 | E161: 2000 | F161: 200 | G161: 1 | H161: 3 | J161: 1;2;3 | L161: 2000;430;390;58 | M161: 1001 | N161: 800 | R161: 2000 | S161: 430 | T161: 390 | U161: 58
A162: 13205 | E162: 2050 | F162: 205 | G162: 1 | H162: 3 | J162: 1;2;3 | L162: 2050;440;400;59 | M162: 1001 | N162: 800 | R162: 2050 | S162: 440 | T162: 400 | U162: 59
A163: 13210 | E163: 2100 | F163: 210 | G163: 1 | H163: 3 | J163: 1;2;3 | L163: 2100;450;410;60 | M163: 1001 | N163: 800 | R163: 2100 | S163: 450 | T163: 410 | U163: 60
A164: 13215 | E164: 2150 | F164: 215 | G164: 1 | H164: 3 | J164: 1;2;3 | L164: 2150;460;420;61 | M164: 1001 | N164: 800 | R164: 2150 | S164: 460 | T164: 420 | U164: 61
A165: 13220 | E165: 2200 | F165: 220 | G165: 1 | H165: 3 | J165: 1;2;3 | L165: 2200;470;430;62 | M165: 1001 | N165: 800 | R165: 2200 | S165: 470 | T165: 430 | U165: 62
A166: 13225 | E166: 2250 | F166: 225 | G166: 1 | H166: 3 | J166: 1;2;3 | L166: 2250;480;440;63 | M166: 1001 | N166: 800 | R166: 2250 | S166: 480 | T166: 440 | U166: 63
A167: 13230 | E167: 2300 | F167: 230 | G167: 1 | H167: 3 | J167: 1;2;3 | L167: 2300;490;450;64 | M167: 1001 | N167: 800 | R167: 2300 | S167: 490 | T167: 450 | U167: 64
A168: 13235 | E168: 2350 | F168: 235 | G168: 1 | H168: 3 | J168: 1;2;3 | L168: 2350;500;460;65 | M168: 1001 | N168: 800 | R168: 2350 | S168: 500 | T168: 460 | U168: 65
A169: 13240 | E169: 2400 | F169: 240 | G169: 1 | H169: 3 | J169: 1;2;3 | L169: 2400;510;470;66 | M169: 1001 | N169: 800 | R169: 2400 | S169: 510 | T169: 470 | U169: 66
A170: 13245 | E170: 2450 | F170: 245 | G170: 1 | H170: 3 | J170: 1;2;3 | L170: 2450;520;480;67 | M170: 1001 | N170: 800 | R170: 2450 | S170: 520 | T170: 480 | U170: 67
A171: 13250 | E171: 2500 | F171: 250 | G171: 1 | H171: 3 | J171: 1;2;3 | L171: 2500;530;490;68 | M171: 1001 | N171: 800 | R171: 2500 | S171: 530 | T171: 490 | U171: 68
A172: 13255 | E172: 2550 | F172: 255 | G172: 1 | H172: 3 | J172: 1;2;3 | L172: 2550;540;500;69 | M172: 1001 | N172: 800 | R172: 2550 | S172: 540 | T172: 500 | U172: 69
A173: 13260 | E173: 2600 | F173: 260 | G173: 1 | H173: 3 | J173: 1;2;3 | L173: 2600;550;510;70 | M173: 1001 | N173: 800 | R173: 2600 | S173: 550 | T173: 510 | U173: 70
A174: 13265 | E174: 2650 | F174: 265 | G174: 1 | H174: 3 | J174: 1;2;3 | L174: 2650;560;520;71 | M174: 1001 | N174: 800 | R174: 2650 | S174: 560 | T174: 520 | U174: 71
A175: 13270 | E175: 2700 | F175: 270 | G175: 1 | H175: 3 | J175: 1;2;3 | L175: 2700;570;530;72 | M175: 1001 | N175: 800 | R175: 2700 | S175: 570 | T175: 530 | U175: 72
A176: 13275 | E176: 2750 | F176: 275 | G176: 1 | H176: 3 | J176: 1;2;3 | L176: 2750;580;540;73 | M176: 1001 | N176: 800 | R176: 2750 | S176: 580 | T176: 540 | U176: 73
A177: 13280 | E177: 2800 | F177: 280 | G177: 1 | H177: 3 | J177: 1;2;3 | L177: 2800;590;550;74 | M177: 1001 | N177: 800 | R177: 2800 | S177: 590 | T177: 550 | U177: 74
A178: 13285 | E178: 2850 | F178: 285 | G178: 1 | H178: 3 | J178: 1;2;3 | L178: 2850;600;560;75 | M178: 1001 | N178: 800 | R178: 2850 | S178: 600 | T178: 560 | U178: 75
A179: 13290 | E179: 2900 | F179: 290 | G179: 1 | H179: 3 | J179: 1;2;3 | L179: 2900;610;570;76 | M179: 1001 | N179: 800 | R179: 2900 | S179: 610 | T179: 570 | U179: 76
A180: 13295 | E180: 2950 | F180: 295 | G180: 1 | H180: 3 | J180: 1;2;3 | L180: 2950;620;580;77 | M180: 1001 | N180: 800 | R180: 2950 | S180: 620 | T180: 580 | U180: 77
A181: 13300 | E181: 3000 | F181: 300 | G181: 1 | H181: 3 | J181: 1;2;3 | L181: 3000;630;590;78 | M181: 1001 | N181: 800 | R181: 3000 | S181: 630 | T181: 590 | U181: 78
A182: 14010 | E182: 100 | F182: 10 | G182: 1 | H182: 4 | J182: 1;2;3 | L182: 100;50;10;20 | M182: 1001 | N182: 800 | R182: 100 | S182: 50 | T182: 10 | U182: 20
A183: 14015 | E183: 150 | F183: 15 | G183: 1 | H183: 4 | J183: 1;2;3 | L183: 150;60;20;21 | M183: 1001 | N183: 800 | R183: 150 | S183: 60 | T183: 20 | U183: 21
A184: 14020 | E184: 200 | F184: 20 | G184: 1 | H184: 4 | J184: 1;2;3 | L184: 200;70;30;22 | M184: 1001 | N184: 800 | R184: 200 | S184: 70 | T184: 30 | U184: 22
A185: 14025 | E185: 250 | F185: 25 | G185: 1 | H185: 4 | J185: 1;2;3 | L185: 250;80;40;23 | M185: 1001 | N185: 800 | R185: 250 | S185: 80 | T185: 40 | U185: 23
A186: 14030 | E186: 300 | F186: 30 | G186: 1 | H186: 4 | J186: 1;2;3 | L186: 300;90;50;24 | M186: 1001 | N186: 800 | R186: 300 | S186: 90 | T186: 50 | U186: 24
A187: 14035 | E187: 350 | F187: 35 | G187: 1 | H187: 4 | J187: 1;2;3 | L187: 350;100;60;25 | M187: 1001 | N187: 800 | R187: 350 | S187: 100 | T187: 60 | U187: 25
A188: 14040 | E188: 400 | F188: 40 | G188: 1 | H188: 4 | J188: 1;2;3 | L188: 400;110;70;26 | M188: 1001 | N188: 800 | R188: 400 | S188: 110 | T188: 70 | U188: 26
A189: 14045 | E189: 450 | F189: 45 | G189: 1 | H189: 4 | J189: 1;2;3 | L189: 450;120;80;27 | M189: 1001 | N189: 800 | R189: 450 | S189: 120 | T189: 80 | U189: 27
A190: 14050 | E190: 500 | F190: 50 | G190: 1 | H190: 4 | J190: 1;2;3 | L190: 500;130;90;28 | M190: 1001 | N190: 800 | R190: 500 | S190: 130 | T190: 90 | U190: 28
A191: 14055 | E191: 550 | F191: 55 | G191: 1 | H191: 4 | J191: 1;2;3 | L191: 550;140;100;29 | M191: 1001 | N191: 800 | R191: 550 | S191: 140 | T191: 100 | U191: 29
A192: 14060 | E192: 600 | F192: 60 | G192: 1 | H192: 4 | J192: 1;2;3 | L192: 600;150;110;30 | M192: 1001 | N192: 800 | R192: 600 | S192: 150 | T192: 110 | U192: 30
A193: 14065 | E193: 650 | F193: 65 | G193: 1 | H193: 4 | J193: 1;2;3 | L193: 650;160;120;31 | M193: 1001 | N193: 800 | R193: 650 | S193: 160 | T193: 120 | U193: 31
A194: 14070 | E194: 700 | F194: 70 | G194: 1 | H194: 4 | J194: 1;2;3 | L194: 700;170;130;32 | M194: 1001 | N194: 800 | R194: 700 | S194: 170 | T194: 130 | U194: 32
A195: 14075 | E195: 750 | F195: 75 | G195: 1 | H195: 4 | J195: 1;2;3 | L195: 750;180;140;33 | M195: 1001 | N195: 800 | R195: 750 | S195: 180 | T195: 140 | U195: 33
A196: 14080 | E196: 800 | F196: 80 | G196: 1 | H196: 4 | J196: 1;2;3 | L196: 800;190;150;34 | M196: 1001 | N196: 800 | R196: 800 | S196: 190 | T196: 150 | U196: 34
A197: 14085 | E197: 850 | F197: 85 | G197: 1 | H197: 4 | J197: 1;2;3 | L197: 850;200;160;35 | M197: 1001 | N197: 800 | R197: 850 | S197: 200 | T197: 160 | U197: 35
A198: =G198*10000+H198*1000+F198 -> 14090 | E198: 900 | F198: 90 | G198: 1 | H198: 4 | J198: 1;2;3 | L198: 900;210;170;36 | M198: 1001 | N198: 800 | R198: 900 | S198: 210 | T198: 170 | U198: 36
A199: 14095 | E199: 950 | F199: 95 | G199: 1 | H199: 4 | J199: 1;2;3 | L199: 950;220;180;37 | M199: 1001 | N199: 800 | R199: 950 | S199: 220 | T199: 180 | U199: 37
A200: 14100 | E200: 1000 | F200: 100 | G200: 1 | H200: 4 | J200: 1;2;3 | L200: 1000;230;190;38 | M200: 1001 | N200: 800 | R200: 1000 | S200: 230 | T200: 190 | U200: 38
A201: 14105 | E201: 1050 | F201: 105 | G201: 1 | H201: 4 | J201: 1;2;3 | L201: 1050;240;200;39 | M201: 1001 | N201: 800 | R201: 1050 | S201: 240 | T201: 200 | U201: 39
... 983 more rows
